[Event "Marshall CC Premier 01-2025"]
[Site "New York"]
[Date "2025.01.06"]
[Round "5.7"]
[White "Raparthi, Ankit"]
[Black "Mottola, Max"]
[Result "1-0"]
[ECO "B11"]
[WhiteElo "1941"]
[BlackElo "2132"]
[Annotator "TA"]
[PlyCount "69"]
[EventDate "2025.01.03"]
[EventType "swiss"]
[EventCountry "USA"]
[SourceTitle "playchess.com"]
[Source "ChessBase"]
[SourceQuality "1"]
[TimeControl "5400+30"]

{[%evp 9,69,-45,-42,-42,-29,-22,-21,-18,-27,-75,-28,-27,-31,-38,-47,-45,17,10,37,-18,0,0,-2,-18,-19,-18,-26,-26,-10,-11,16,-68,9,-20,-43,-20,0,-22,29,0,35,25,241,0,341,341,339,333,409,414,382,354,403,330,437,425,570,553,1160,1137,1227,1213]} 1. e4 {[%emt 0:00:26]} c6 {[%emt 0:00:10]} 2. Nc3 {[%emt 0:00:37]} d5 {[%emt 0:00:08]} 3. Qe2 {[%emt 0:00:04]} d4 {[%emt 0:00:31]} 4. Nd1 {[%emt 0:00:04]} e5 {[%emt 0:01:26]} 5. d3 {[%emt 0:00:12]} Bd6 {[%emt 0:01:18]} 6. g3 {[%emt 0:00:27]} c5 {[%emt 0:02:15]} 7. f4 {[%emt 0:00:39]} Nc6 {[%emt 0:02:26]} 8. Nf3 {[%emt 0:00:15]} Nge7 {[%emt 0:00:55]} 9. Bg2 {[%emt 0:00:42]} (9. f5 $11 {was preferable.}) 9... Qc7 {[%emt 0:03:05]} (9... exf4 $17 10. gxf4 f6) 10. f5 $11 {[%emt 0:01:14]} Bd7 {[%emt 0:01:04]} 11. O-O {[%emt 0:00:57]} f6 {[%emt 0:03:05] Against Ng5} 12. Nf2 {[%emt 0:00:46]} Na5 {[%emt 0:10:30]} (12... O-O-O $15) 13. Bd2 {[%emt 0:01:59]} O-O-O {[%emt 0:04:59]} 14. a3 {[%emt 0:03:08]} (14. c3 $14) 14... Bb5 {[%emt 0:04:56]} 15. Rfc1 {[%emt 0:06:55]} Kb8 {[%emt 0:02:36]} 16. Qe1 {[%emt 0:05:20]} Nac6 {[%emt 0:01:52]} 17. c3 {[%emt 0:01:22]} dxc3 {[%emt 0:01:22]} 18. bxc3 {[%emt 0:00:27][%cal Od3d4]} c4 {[%emt 0:03:18]} 19. d4 {[%emt 0:02:06]} Ba4 {[%emt 0:03:41]} 20. Ng4 {[%emt 0:04:20]} ({White should try} 20. Rcb1 $11) 20... exd4 {[%emt 0:13:02]} (20... h5 $1 $15 21. Ne3 Na5) 21. Nxd4 {[%emt 0:04:38]} (21. cxd4 {feels hotter.} Nxd4 22. Nxd4 Bc5 23. Bf4) 21... Bc5 {[%emt 0:07:24]} 22. Kh1 {[%emt 0:05:44]} Nxd4 {[%emt 0:02:21]} 23. cxd4 {[%emt 0:02:31]} Bxd4 {[%emt 0:00:49]} ({Black should try} 23... Rxd4 24. Rab1 Bc6 (24... Bxa3 25. Bf4 $16)) 24. Rab1 $1 {[%emt 0:00:29]} (24. Bf4 Be5 25. Nxe5 fxe5 $19) 24... Qd7 {[%emt 0:08:41]} 25. Rxc4 {[%emt 0:02:08] Strongly threatening Bf4+.} Bc6 $2 {[%emt 0:00:50]} (25... Ka8 $11 {and Black has nothing to worry.}) 26. Bb4 $2 {[%emt 0:01:08]} (26. Bf4+ $18 Ka8 27. Rd1 Nxf5 28. Qf1 (28. Rxc6 Nxg3+ 29. Bxg3 Qxc6 $16)) 26... Rhe8 $2 {[%emt 0:03:37][%mdl 8192] [#]} (26... Nc8 $11) 27. Bxe7 $1 $18 {[%emt 0:05:53]} Rxe7 {[%emt 0:00:14]} 28. Rd1 {[%emt 0:00:08]} Rde8 {[%emt 0:17:22]} 29. Rdxd4 {[%emt 0:00:58]} Qxf5 {[%emt 0:00:29]} 30. Qd1 {[%emt 0:03:52]} ({But not} 30. Rxc6 bxc6 31. Qb1+ (31. exf5 $2 {is the wrong capture.} Rxe1+ $19) 31... Kc7 $18) 30... Qa5 {[%emt 0:00:31] Repels Rd8+} 31. Qc1 {[%emt 0:02:48]} Re6 {[%emt 0:00:31]} 32. Ne3 {[%emt 0:01:18]} Rd8 {[%emt 0:00:18]} 33. Nd5 {[%emt 0:03:20]} Red6 {[%emt 0:00:29]} 34. Rc5 {[%emt 0:00:38]} Qa6 {[%emt 0:00:43]} 35. Bf1 {[%emt 0:01:21]} 1-0

[Event "Marshall CC Premier 01-2025"]
[Site "New York"]
[Date "2025.01.06"]
[Round "5.8"]
[White "Raitzin, Misha"]
[Black "Karas, Nicholas"]
[Result "1-0"]
[ECO "B12"]
[WhiteElo "1898"]
[BlackElo "2042"]
[Annotator "RC"]
[PlyCount "85"]
[EventDate "2025.01.03"]
[EventType "swiss"]
[EventCountry "USA"]
[SourceTitle "playchess.com"]
[Source "ChessBase"]
[SourceQuality "1"]
[TimeControl "5400+30"]

1. e4 {[%emt 0:16:50]} c6 {[%emt 0:00:03]} 2. d4 {[%emt 0:00:07]} g6 {[%emt 0:00:04]} 3. Nc3 {[%emt 0:00:30]} d5 {[%emt 0:00:16]} 4. Nf3 {[%emt 0:01:00]} Bg7 {[%emt 0:00:51]} 5. Bd3 {[%emt 0:02:17]} dxe4 {[%emt 0:02:27]} 6. Nxe4 {[%emt 0:01:34]} Nf6 {[%emt 0:00:32]} 7. Nxf6+ {[%emt 0:00:57]} exf6 {[%emt 0:00:05]} 8. c3 {[%emt 0:01:06]} O-O {[%emt 0:00:39]} 9. Qc2 {[%emt 0:01:44]} Re8+ {[%emt 0:00:09]} 10. Be3 {[%emt 0:00:26]} Be6 {[%emt 0:01:29]} 11. O-O-O {[%emt 0:05:44]} a5 {[%emt 0:01:26]} 12. h4 {[%emt 0:04:14]} h5 {[%emt 0:01:27]} 13. Nd2 {[%emt 0:05:22]} b5 {[%emt 0:01:35]} 14. f3 {[%emt 0:05:33]} Bxa2 {[%emt 0:03:31]} 15. Rde1 {[%emt 0:03:21]} a4 {[%emt 0:01:04]} 16. g4 {[%emt 0:04:01]} Bb3 {[%emt 0:04:09]} 17. Nxb3 {[%emt 0:05:44]} axb3 {[%emt 0:00:03]} 18. Qxb3 {[%emt 0:03:08]} Rxe3 {[%emt 0:03:38]} 19. Rxe3 {[%emt 0:00:10]} Ra1+ {[%emt 0:00:03]} 20. Bb1 {[%emt 0:00:10]} Bh6 {[%emt 0:00:33]} 21. Rhe1 {[%emt 0:00:31]} Bxe3+ {[%emt 0:00:33]} 22. Rxe3 {[%emt 0:00:01]} Qd6 {[%emt 0:06:12]} 23. Qc2 {[%emt 0:05:57]} hxg4 {[%emt 0:13:31]} 24. fxg4 {[%emt 0:01:42]} Qf4 {[%emt 0:01:27]} 25. Qe4 {[%emt 0:01:58]} Qxe4 {[%emt 0:10:45]} 26. Rxe4 {[%emt 0:00:01]} Nd7 {[%emt 0:46:58]} 27. Re7 {[%emt 0:04:00]} Ra7 {[%emt 0:00:00]} 28. Re8+ {[%emt 0:04:00]} Nf8 {[%emt 0:00:00]} 29. Rc8 {[%emt 0:01:00]} Re7 {[%emt 0:00:00]} 30. Kd2 {[%emt 0:03:46]} Re6 {[%emt 0:00:00]} 31. Rc7 {[%emt 0:00:26]} Rd6 {[%emt 0:00:00]} 32. Be4 {[%emt 0:01:58]} f5 {[%emt 0:00:00]} 33. gxf5 {[%emt 0:00:53]} gxf5 {[%emt 0:00:00]} 34. Rxc6 {[%emt 0:00:54]} Rxc6 {[%emt 0:00:00]} 35. Bxc6 {[%emt 0:00:09]} b4 {[%emt 0:00:00]} 36. cxb4 {[%emt 0:03:28]} Ne6 {[%emt 0:00:00]} 37. Bd7 {[%emt 0:01:20]} Nxd4 {[%emt 0:00:00]} 38. Kc3 {[%emt 0:00:08]} Ne2+ {[%emt 0:00:00]} 39. Kc4 {[%emt 0:00:13]} f4 {[%emt 0:00:00]} 40. b5 {[%emt 0:02:49]} Ng3 {[%emt 0:00:00]} 41. Kc5 {[%emt 0:03:15]} Ne4+ {[%emt 0:00:00]} 42. Kc6 {[%emt 0:00:13]} f3 {[%emt 0:00:00]} 43. Bh3 {[%emt 0:00:30]} 1-0

[Event "Marshall CC Premier 01-2025"]
[Site "New York"]
[Date "2025.01.06"]
[Round "5.9"]
[White "Nkululeko, Nkosi"]
[Black "Hinson, Miles"]
[Result "1/2-1/2"]
[ECO "A01"]
[WhiteElo "1970"]
[BlackElo "1975"]
[Annotator "RC"]
[PlyCount "167"]
[EventDate "2025.01.03"]
[EventType "swiss"]
[EventCountry "USA"]
[SourceTitle "playchess.com"]
[Source "ChessBase"]
[SourceQuality "1"]
[TimeControl "5400+30"]

1. b3 {[%emt 0:03:06]} Nf6 {[%emt 0:00:23]} 2. Bb2 {[%emt 0:00:13]} d5 {[%emt 0:00:05]} 3. d3 {[%emt 0:00:15]} c5 {[%emt 0:00:49]} 4. Nd2 {[%emt 0:00:11]} Nc6 {[%emt 0:00:14]} 5. Ngf3 {[%emt 0:00:17]} e6 {[%emt 0:02:51]} 6. e4 {[%emt 0:01:35]} d4 {[%emt 0:03:31]} 7. a4 {[%emt 0:01:12]} e5 {[%emt 0:03:35]} 8. Be2 {[%emt 1:27:41]} Be7 {[%emt 0:00:43]} 9. O-O {[%emt 0:00:00]} O-O {[%emt 0:00:04]} 10. Nc4 {[%emt 0:00:00]} Qc7 {[%emt 0:00:21]} 11. Bc1 {[%emt 0:00:00]} Be6 {[%emt 0:15:08]} 12. Ng5 {[%emt 0:00:00]} Bxc4 {[%emt 0:00:14]} 13. bxc4 {[%emt 0:00:00]} Bd6 {[%emt 0:03:02]} 14. Nh3 {[%emt 0:00:00]} Ne7 {[%emt 0:04:41]} 15. g3 {[%emt 0:00:00]} b6 {[%emt 0:03:22]} 16. f4 {[%emt 0:00:00]} a6 {[%emt 0:06:39]} 17. f5 {[%emt 0:00:00]} b5 {[%emt 0:03:14]} 18. g4 {[%emt 0:00:00]} bxc4 {[%emt 0:03:33]} 19. g5 {[%emt 0:00:00]} Nd7 {[%emt 0:00:07]} 20. f6 {[%emt 0:00:00]} Ng6 {[%emt 0:02:35]} 21. Bg4 {[%emt 0:06:30]} cxd3 {[%emt 0:04:13]} 22. cxd3 {[%emt 0:00:00]} c4 {[%emt 0:05:33]} 23. dxc4 {[%emt 0:00:00]} Nc5 {[%emt 0:01:26]} 24. Bf5 {[%emt 0:00:00]} Qb7 {[%emt 0:03:30]} 25. Nf2 {[%emt 0:00:00]} Rfd8 {[%emt 0:07:15]} 26. Qh5 {[%emt 0:00:00]} Bf8 {[%emt 0:00:31]} 27. Ra3 {[%emt 0:00:00]} d3 {[%emt 0:00:44]} 28. Be3 {[%emt 0:00:00]} Nb3 {[%emt 0:04:54]} 29. c5 {[%emt 0:00:00]} Nxc5 {[%emt 0:04:37]} 30. Rc3 {[%emt 0:00:00]} Nxa4 {[%emt 0:04:08]} 31. Rxd3 {[%emt 0:00:00]} Rxd3 {[%emt 0:00:20]} 32. Nxd3 {[%emt 0:00:00]} Qb3 {[%emt 0:01:27]} 33. Qe2 {[%emt 0:00:00]} Rd8 {[%emt 0:01:07]} 34. Bxg6 {[%emt 0:00:00]} Qxd3 {[%emt 0:03:02]} 35. Qxd3 {[%emt 0:00:00]} Rxd3 {[%emt 0:00:04]} 36. fxg7 {[%emt 0:00:00]} hxg6 {[%emt 0:00:52]} 37. gxf8=Q+ {[%emt 0:00:00]} Kxf8 {[%emt 0:00:00]} 38. Ra1 {[%emt 0:00:00]} Nc3 {[%emt 0:02:21]} 39. Bc5+ {[%emt 0:00:00]} Ke8 {[%emt 0:01:28]} 40. Rxa6 {[%emt 0:00:00]} Nxe4 {[%emt 0:07:47]} 41. Ra8+ {[%emt 0:00:00]} Kd7 {[%emt 0:00:00]} 42. Bb6 {[%emt 0:00:00]} Ke6 {[%emt 0:00:00]} 43. h4 {[%emt 0:00:00]} Rd7 {[%emt 0:00:00]} 44. Kg2 {[%emt 0:00:00]} Nd6 {[%emt 0:00:00]} 45. Ra6 {[%emt 0:00:00]} Kf5 {[%emt 0:00:00]} 46. Kf3 {[%emt 0:00:00]} e4+ {[%emt 0:00:00]} 47. Kg3 {[%emt 0:00:00]} Nc4 {[%emt 0:00:00]} 48. Bf2 {[%emt 0:00:00]} Rd3+ {[%emt 0:00:00]} 49. Kg2 {[%emt 0:00:00]} e3 {[%emt 0:01:25]} 50. Be1 {[%emt 0:00:00]} Ne5 {[%emt 0:01:02]} 51. Kf1 {[%emt 0:00:00]} Ke4 {[%emt 0:01:20]} 52. Ke2 {[%emt 0:00:00]} Rd4 {[%emt 0:00:47]} 53. Bc3 {[%emt 0:00:00]} Rc4 {[%emt 0:00:32]} 54. Bxe5 {[%emt 0:00:00]} Rc2+ {[%emt 0:00:27]} 55. Kd1 {[%emt 0:00:00]} Rd2+ {[%emt 0:00:05]} 56. Ke1 {[%emt 0:00:00]} Kxe5 {[%emt 0:00:05]} 57. Ra7 {[%emt 0:00:00]} Ke6 {[%emt 0:01:54]} 58. Ra5 {[%emt 0:00:00]} Rh2 {[%emt 0:00:17]} 59. Ra6+ {[%emt 0:04:45]} Kf5 {[%emt 0:00:25]} 60. Rf6+ {[%emt 0:00:20]} Kg4 {[%emt 0:00:11]} 61. Rxf7 {[%emt 0:00:05]} Rxh4 {[%emt 0:00:12]} 62. Ke2 {[%emt 0:00:09]} Rh3 {[%emt 0:00:09]} 63. Ra7 {[%emt 0:01:37]} Kxg5 {[%emt 0:00:15]} 64. Ra4 {[%emt 0:00:02]} Kh5 {[%emt 0:00:56]} 65. Rb4 {[%emt 0:02:17]} g5 {[%emt 0:00:29]} 66. Ra4 {[%emt 0:01:23]} Rh4 {[%emt 0:00:49]} 67. Ra5 {[%emt 0:00:15]} Re4 {[%emt 0:00:13]} 68. Ra1 {[%emt 0:02:07]} g4 {[%emt 0:00:27]} 69. Rh1+ {[%emt 0:00:24]} Kg5 {[%emt 0:00:06]} 70. Rh8 {[%emt 0:00:04]} Kf4 {[%emt 0:00:29]} 71. Rf8+ {[%emt 0:00:42]} Kg3 {[%emt 0:00:11]} 72. Rg8 {[%emt 0:00:59]} Kh3 {[%emt 0:00:29]} 73. Rh8+ {[%emt 0:00:25]} Kg2 {[%emt 0:00:10]} 74. Rg8 {[%emt 0:00:15]} g3 {[%emt 0:00:07]} 75. Rg7 {[%emt 0:00:54]} Re6 {[%emt 0:00:59]} 76. Rg8 {[%emt 0:01:04]} Kh2 {[%emt 0:00:48]} 77. Rh8+ {[%emt 0:00:20]} Kg1 {[%emt 0:00:26]} 78. Rg8 {[%emt 0:00:15]} g2 {[%emt 0:00:08]} 79. Rh8 {[%emt 0:00:39]} Rf6 {[%emt 0:00:37]} 80. Rh7 {[%emt 0:00:14]} Rf2+ {[%emt 0:00:32]} 81. Ke1 {[%emt 0:00:44]} Rf6 {[%emt 0:01:04]} 82. Ke2 {[%emt 0:00:17]} Rb6 {[%emt 0:00:15]} 83. Rh8 {[%emt 0:00:13]} Rb2+ {[%emt 0:00:12]} 84. Ke1 {[%emt 0:00:05]} 1/2-1/2